fUST/lending_fUST_20241003
["ID","MTS","AMOUNT","RATE_DAILY","PERIOD"]
[339730645,1727907049143,-3352.243585,0.00013698,2]
[339730646,1727907049153,-3352.243585,0.00013698,2]
[339730647,1727907049163,-3352.243585,0.00013698,2]
[339730648,1727907049173,-3352.243585,0.00013698,2]
[339730649,1727907049183,-500.0,0.00013698,2]
[339730650,1727907049192,-500.0,0.00013698,2]
[339730651,1727907049203,-3352.243585,0.00013698,2]
[339730652,1727907049212,-3352.243585,0.00013698,2]
[339730653,1727907049221,-500.0,0.00013698,2]
[339730654,1727907049231,-3352.243585,0.00013698,2]
[339730655,1727907049241,-3352.243585,0.00013698,2]
[339730656,1727907049251,-3352.243585,0.00013698,2]
[339730657,1727907049260,-500.0,0.00013698,2]
[339730658,1727907049270,-500.0,0.00013698,2]
[339730659,1727907049280,-830.93,0.00013698,2]
[339730660,1727907049289,-500.0,0.00013698,2]
[339730661,1727907049300,-1636.69,0.00013698,2]
[339730662,1727907049310,-500.0,0.00013698,2]
[339730663,1727907049320,-500.0,0.00013698,2]
[339730664,1727907049330,-651.91,0.00013698,2]
[339730665,1727907049340,-672.79,0.00013698,2]
[339730666,1727907049349,-500.0,0.00013698,2]
[339730667,1727907049358,-500.0,0.00013698,2]
[339730668,1727907049368,-500.0,0.00013698,2]
[339730669,1727907049380,-22256.16,0.00013698,2]
[339730670,1727907049389,-500.0,0.00013698,2]
[339730671,1727907049399,-500.0,0.00013698,2]
[339730672,1727907049408,-500.0,0.00013698,2]
[339730673,1727907049417,-500.0,0.00013698,2]
[339730674,1727907049427,-500.0,0.00013698,2]
[339730675,1727907049437,-777.26,0.00013698,2]
[339730676,1727907049447,-151.0,0.00013698,2]
[339730677,1727907049456,-500.0,0.00013698,2]
[339730678,1727907049467,-151.0,0.00013698,2]
[339730679,1727907049476,-151.0,0.00013698,2]
[339730680,1727907049486,-151.0,0.00013698,2]
[339730681,1727907049498,-151.0,0.00013698,2]
[339730682,1727907049507,-500.0,0.00013698,2]
[339730683,1727907049517,-500.0,0.00013698,2]
[339730684,1727907049527,-500.0,0.00013698,2]
[339730685,1727907049536,-613.64,0.00013698,2]
[339730686,1727907049546,-534.18,0.00013698,2]
[339730687,1727907049555,-500.0,0.00013698,2]
[339730688,1727907049565,-500.0,0.00013698,2]
[339730689,1727907049576,-500.0,0.00013698,2]
[339730690,1727907049587,-788.44,0.00013698,2]
[339730691,1727907049596,-713.92,0.00013698,2]
[339730692,1727907049605,-500.0,0.00013698,2]
[339730693,1727907049615,-500.0,0.00013698,2]
[339730694,1727907049629,-500.0,0.00013698,2]
[339730695,1727907049638,-500.0,0.00013698,2]
[339730696,1727907049648,-500.0,0.00013698,2]
[339730697,1727907049658,-2918.32,0.00013698,2]
[339730698,1727907049669,-500.0,0.00013698,2]
[339730699,1727907049678,-151.0,0.00013698,2]
[339730700,1727907049690,-151.0,0.00013698,2]
[339730701,1727907049701,-151.0,0.00013698,2]
[339730702,1727907049710,-151.0,0.00013698,2]
[339730703,1727907049719,-151.0,0.00013698,2]
[339730704,1727907049729,-561.5,0.00013698,2]
[339730705,1727907049739,-500.0,0.00013698,2]
[339730706,1727907049748,-1939.45,0.00013698,2]
[339730707,1727907049758,-500.0,0.00013698,2]
[339730708,1727907049768,-151.0,0.00013698,2]
[339730709,1727907049779,-151.0,0.00013698,2]
[339730710,1727907049789,-151.0,0.00013698,2]
[339730711,1727907049801,-151.0,0.00013698,2]
[339730712,1727907049810,-151.0,0.00013698,2]
[339730713,1727907049820,-500.0,0.00013698,2]
[339730714,1727907049830,-500.0,0.00013698,2]
[339730715,1727907049839,-500.0,0.00013698,2]
[339730716,1727907049849,-500.0,0.00013698,2]
[339730717,1727907049858,-500.0,0.00013698,2]
[339730718,1727907049867,-500.0,0.00013698,2]
[339730719,1727907049877,-500.0,0.00013698,2]
[339730720,1727907049887,-500.0,0.00013698,2]
[339730721,1727907049898,-330.59854906,0.00013698,2]
[339730737,1727907958128,-250.0,0.00011633,2]
[339730738,1727907958152,-903.4367623,0.00012209,2]
[339730739,1727907994093,-179.40074795,0.00012209,2]
[339730740,1727908047478,-955.24591925,0.00012209,2]
[339730741,1727908047505,-169.499414,0.000123,2]
[339730742,1727908047529,-300.0,0.00012316,2]
[339730743,1727908047553,-300.0,0.00012316,2]
[339730744,1727908047577,-3771.79957956,0.00012317,2]
[339730747,1727908154173,-200.0,0.00011903,2]
[339730748,1727908154196,-300.0,0.00011903,2]
[339730749,1727908154221,-24900.0,0.00011904,2]
[339730750,1727908154246,-398.51609667,0.000123,2]
[339730751,1727908160153,-169.499414,0.00012359,2]
[339730752,1727908160400,-169.499414,0.00012417,2]
[339730753,1727908160433,-169.499414,0.00012475,2]
[339730754,1727908160458,-169.499414,0.00012534,2]
[339730768,1727908213940,169.499414,0.00012366,2]
[339730769,1727908214136,169.499414,0.00012473,2]
[339730794,1727908232054,-169.499414,0.0001258,2]
[339730795,1727908232064,-113.93708947,0.00012688,2]
[339730796,1727908232076,-55.56232453,0.00012688,2]
[339730797,1727908232085,-169.499414,0.00012795,2]
[339730798,1727908232095,-215.45428735,0.00012878,2]
[339730802,1727908234777,500.0,0.00011496,2]
[339730835,1727908240324,-500.0,0.00012866,2]
[339730836,1727908240335,-197.06814555,0.00012878,2]
[339730837,1727908240345,-153.0,0.00012878,2]
[339730838,1727908240354,-153.0,0.00012878,2]
[339730839,1727908240363,-153.0,0.00012878,2]
[339730840,1727908240373,-169.499414,0.00012903,2]
[339730841,1727908240383,-169.499414,0.0001301,2]
[339730842,1727908240392,-3355.91716577,0.00013488,2]
[339730843,1727908240402,-300.0,0.00013539,2]
[339730844,1727908240411,-1320.81139554,0.0001354,2]
[339730845,1727908240423,-4178.25999822,0.0001354,2]
[339730846,1727908240435,-852.49173482,0.0001354,2]
[339730867,1727908246462,-1077.1781694,0.00013561,2]
[339730868,1727908246472,-405.54675459,0.00013578,2]
[339730869,1727908246481,-177.533,0.00013595,2]
[339730871,1727908246491,-1048.23166014,0.00013597,2]
[339730872,1727908246501,-542.02338215,0.00013656,2]
[339730873,1727908246511,-275.22709024,0.00013668,2]
[339730874,1727908246521,-25393.04054048,0.00013668,2]
[339730875,1727908253377,631.83,0.00010959,2]
[339730881,1727909135125,-300.0,0.00012642,2]
[339730882,1727909135149,-300.0,0.00012642,2]
[339730883,1727909135173,-1087.43899169,0.00012643,2]
[339730885,1727909227120,-300.0,0.00012608,2]
[339730886,1727909227144,-337.9660548,0.00012609,2]
[339730887,1727909251116,-10035.5886028,0.00012609,2]
[339730982,1727909434901,-300.0,0.00012608,2]
[339730983,1727909434911,-2448.51597774,0.00012609,2]
[339730996,1727909438209,-1210.00000001,0.00012609,2]
[339731001,1727909438249,-2116.14531724,0.00012609,2]
[339731008,1727909438310,-1459.4932213,0.00012609,2]
[339731056,1727909440301,-7292.29082611,0.00012609,2]
[339731057,1727909440313,-160.1169225,0.00012663,2]
[339731058,1727909440325,-3574.97766107,0.00013388,2]
[339731059,1727909440335,-400.0,0.00013491,2]
[339731060,1727909440346,-3565.89579065,0.00013568,2]
[339731061,1727909440356,-1000.0,0.00013578,2]
[339731062,1727909440366,-177.533,0.00013597,2]
[339731063,1727909440375,-409.43492924,0.00013598,2]
[339731064,1727909440384,-943.40849409,0.00013598,2]
[339731065,1727909440397,-183.48472683,0.00013668,2]
[339731066,1727909440407,-20348.63867774,0.00013668,2]
[339731067,1727909440416,-15851.13047252,0.00013668,2]
[339731068,1727909440428,-102424.93642704,0.00013668,2]
[339731086,1727909443450,-55.62674814,0.00013668,2]
[339731087,1727909443466,-933.4792192,0.00013668,2]
[339731104,1727909446567,-1115.06540031,0.00013668,2]
[339731105,1727909446579,-1022.12551638,0.00013668,2]
[339731106,1727909446590,-953.012298,0.00013668,2]
[339731107,1727909446602,-309.30294729,0.00013668,2]
[339731108,1727909446613,-16259.92562486,0.00013668,2]
[339731109,1727909448363,241.61,0.00010959,2]
[339731111,1727910109285,9445.1583565,0.0001,2]
[339731112,1727910255764,-300.0,0.000136,4]
[339731114,1727910453152,-190.6999502,0.00012039,2]
[339731115,1727910453176,-167.385969,0.00012042,2]
[339731116,1727910453224,-167.385969,0.00012112,2]
[339731117,1727910453265,-167.385969,0.00012181,2]
[339731118,1727910453303,-174.260096,0.00012207,2]
[339731119,1727910453347,-174.260096,0.00012227,2]
[339731120,1727910453386,-174.260096,0.00012248,2]
[339731121,1727910453423,-167.385969,0.00012251,2]
[339731122,1727910453454,-174.260096,0.00012268,2]
[339731123,1727910453489,-300.0,0.00012293,2]
[339731124,1727910453528,-160.02539528,0.00012294,2]
[339731125,1727910549242,-300.0,0.00012126,2]
[339731126,1727910549266,-24900.0,0.00012127,2]
[339731127,1727910562107,-167.385969,0.00012321,2]
[339731128,1727910574137,-167.385969,0.0001239,2]
[339731129,1727910574163,-167.385969,0.0001246,2]
[339731130,1727910574190,-167.385969,0.0001253,2]
[339731236,1727910640539,-167.385969,0.000126,2]
[339731237,1727910640549,-167.385969,0.00012669,2]
[339731238,1727910640559,-153.0,0.00013,2]
[339731239,1727910640569,-665.75894811,0.00013074,2]
[339731240,1727910640579,-991.919556,0.00013254,2]
[339731241,1727910640589,-849.06764469,0.00013597,2]
[339731242,1727910640598,-300.0,0.00013672,2]
[339731243,1727910640608,-500.0,0.00013673,2]
[339731244,1727910640617,-500.0,0.00013673,2]
[339731245,1727910640628,-500.0,0.00013673,2]
[339731246,1727910640638,-629.5665433,0.00013673,2]
[339731247,1727910640648,-500.0,0.00013673,2]
[339731248,1727910640658,-197.9503916,0.00013673,2]
[339731249,1727910640667,-500.0,0.00013673,2]
[339731250,1727910640677,-488.18091068,0.00013673,2]
[339731251,1727910640686,-500.0,0.00013673,2]
[339731252,1727910640696,-500.0,0.00013673,2]
[339731253,1727910640706,-500.0,0.00013673,2]
[339731254,1727910640718,-500.0,0.00013673,2]
[339731255,1727910640728,-500.0,0.00013673,2]
[339731256,1727910640737,-500.0,0.00013673,2]
[339731257,1727910640747,-500.0,0.00013673,2]
[339731258,1727910640757,-500.0,0.00013673,2]
[339731259,1727910640767,-9728.96414125,0.00013688,2]
[339731260,1727910640879,-445.35519762,0.00013688,2]
[339731261,1727910640890,-183.48472683,0.00013688,2]
[339731262,1727910640902,-2801.59552284,0.00013688,2]
[339731277,1727910646623,-5123.96971343,0.00013688,2]
[339731278,1727910646634,-151.0,0.00013688,2]
[339731279,1727910646644,-78404.53980413,0.00013688,2]
[339731281,1727910689148,10000.0,0.00021,60]
[339731282,1727910707384,10000.0,0.00021,60]
[339731297,1727911640150,-4634.11584425,0.00010235,2]
[339731298,1727911648139,-20265.88415575,0.00010235,2]
[339731299,1727911648163,-250.0,0.00010594,2]
[339731300,1727911648187,-196.48326697,0.00010664,2]
[339731309,1727911745099,-53.51673303,0.00010664,2]
[339731310,1727911745124,-250.0,0.00010694,2]
[339731311,1727911745148,-250.0,0.00010723,2]
[339731312,1727911745173,-250.0,0.00010752,2]
[339731313,1727911745197,-33.54629988,0.00010781,2]
[339731314,1727911755185,-216.45370012,0.00010781,2]
[339731315,1727911755209,-250.0,0.00010811,2]
[339731316,1727911755236,-250.0,0.0001084,2]
[339731317,1727911755259,-250.0,0.00010869,2]
[339731318,1727911755283,-250.0,0.00010899,2]
[339731319,1727911755307,-250.0,0.00010928,2]
[339731320,1727911755330,-250.0,0.00010957,2]
[339731321,1727911755352,-574.3,0.00010959,2]
[339731322,1727911755375,-631.83,0.00010959,2]
[339731323,1727911755398,-250.0,0.00010986,2]
[339731324,1727911755421,-250.0,0.00011016,2]
[339731325,1727911755444,-250.0,0.00011045,2]
[339731326,1727911755467,-250.0,0.00011074,2]
[339731327,1727911755489,-250.0,0.00011103,2]
[339731328,1727911755513,-250.0,0.00011133,2]
[339731329,1727911755536,-250.0,0.00011162,2]
[339731330,1727911755560,-250.0,0.00011191,2]
[339731331,1727911755582,-250.0,0.0001122,2]
[339731332,1727911755606,-168.292164,0.00011412,2]
[339731333,1727911755629,-168.292164,0.00011415,2]
[339731334,1727911755652,-300.0,0.00011415,2]
[339731335,1727911755676,-300.0,0.00011415,2]
[339731336,1727911755697,-168.292164,0.00011418,2]
[339731337,1727911755719,-168.292164,0.00011421,2]
[339731338,1727911755740,-168.292164,0.00011424,2]
[339731339,1727911755762,-168.292164,0.00011427,2]
[339731340,1727911755782,-168.292164,0.0001143,2]
[339731341,1727911755803,-168.292164,0.00011433,2]
[339731342,1727911755825,-168.292164,0.00011436,2]
[339731343,1727911755850,-168.292164,0.00011439,2]
[339731344,1727911755874,-168.292164,0.00011442,2]
[339731345,1727911755897,-168.292164,0.00011445,2]
[339731346,1727911755919,-168.292164,0.00011448,2]
[339731347,1727911755939,-168.292164,0.00011451,2]
[339731348,1727911755960,-168.292164,0.00011454,2]
[339731349,1727911755983,-168.292164,0.00011457,2]
[339731350,1727911756008,-168.292164,0.0001146,2]
[339731351,1727911756029,-168.292164,0.00011463,2]
[339731352,1727911756050,-168.292164,0.00011466,2]
[339731353,1727911756070,-500.0,0.00011468,2]
[339731354,1727911756091,-168.292164,0.00011469,2]
[339731355,1727911756112,-316.41050942,0.00011745,2]
[339731356,1727911758131,-420.0,0.00012539,2]
[339731357,1727911758153,-420.0,0.00012557,2]
[339731388,1727911832681,-250.0,0.00012619,2]
[339731390,1727911832691,-250.0,0.00012654,2]
[339731392,1727911832700,-250.0,0.00012688,2]
[339731394,1727911832710,-78.20825659,0.00012723,2]
[339731402,1727911832770,-171.79174341,0.00012723,2]
[339731404,1727911832779,-250.0,0.00012758,2]
[339731406,1727911832788,-250.0,0.00012792,2]
[339731408,1727911832798,-250.0,0.00012827,2]
[339731409,1727911832807,-500.0,0.00012838,2]
[339731411,1727911832816,-250.0,0.00012861,2]
[339731413,1727911832826,-250.0,0.00012896,2]
[339731415,1727911832835,-379.58241467,0.0001292,2]
[339731514,1727911838591,-104.11255633,0.0001292,2]
[339731515,1727911838602,-250.0,0.00012931,2]
[339731516,1727911838613,-250.0,0.00012965,2]
[339731517,1727911838624,-250.0,0.00013,2]
[339731518,1727911838635,-474.41201,0.00013,2]
[339731519,1727911838644,-250.0,0.00013034,2]
[339731520,1727911838655,-250.0,0.00013069,2]
[339731521,1727911838665,-250.0,0.00013104,2]
[339731522,1727911838675,-250.0,0.00013138,2]
[339731523,1727911838687,-250.0,0.00013173,2]
[339731524,1727911838699,-250.0,0.00013207,2]
[339731525,1727911838708,-250.0,0.00013242,2]
[339731526,1727911838717,-250.0,0.00013277,2]
[339731527,1727911838727,-298.67236164,0.00013425,2]
[339731528,1727911838749,-179.11296296,0.00013425,2]
[339731529,1727911838759,-300.0,0.00013425,2]
[339731530,1727911838769,-300.0,0.00013425,2]
[339731531,1727911838778,-6295.27805937,0.00013561,2]
[339731532,1727911838787,-250.0,0.00013561,2]
[339731533,1727911838796,-764.16088023,0.00013598,2]
[339731534,1727911838805,-213.47260484,0.000136,2]
[339731535,1727911838814,-151.0,0.00013668,2]
[339731536,1727911838824,-1384.332424,0.00013668,2]
[339731537,1727911838834,-1384.332424,0.00013668,2]
[339731538,1727911838845,-159.434983,0.00013668,2]
[339731539,1727911838855,-159.434983,0.00013668,2]
[339731540,1727911838867,-151.0,0.00013668,2]
[339731541,1727911838877,-151.0,0.00013668,2]
[339731542,1727911838887,-151.0,0.00013668,2]
[339731543,1727911838896,-151.0,0.00013668,2]
[339731544,1727911838906,-151.0,0.00013668,2]
[339731545,1727911838915,-151.0,0.00013668,2]
[339731546,1727911838924,-500.0,0.00013673,2]
[339731547,1727911838934,-500.0,0.00013673,2]
[339731548,1727911838943,-331.01890032,0.00013673,2]
[339731549,1727911838953,-500.0,0.00013673,2]
[339731550,1727911838962,-500.0,0.00013673,2]
[339731551,1727911838971,-500.0,0.00013673,2]
[339731552,1727911838982,-322.660334,0.00013673,2]
[339731553,1727911838991,-500.39193273,0.00013673,2]
[339731554,1727911839001,-500.0,0.00013673,2]
[339731555,1727911839011,-500.0,0.00013673,2]
[339731556,1727911839022,-500.0,0.00013673,2]
[339731557,1727911839032,-210.94033961,0.00013678,2]
[339731558,1727911839041,-38709.5103358,0.00013678,2]
[339731559,1727911839051,-18640.36062424,0.00013678,2]
[339731567,1727911840640,-1964.18570187,0.00013678,2]
[339731569,1727911843684,-3113.77244737,0.00013678,2]
[339731573,1727911846694,-4881.68865733,0.00013678,2]
[339731574,1727911846709,-250.0,0.00013678,2]
[339731576,1727911862112,500.0,0.00011468,2]
[339731588,1727912053934,-300.0,0.000136,4]
[339731589,1727912153586,30006.33687643,0.0001,2]
[339731598,1727912740154,-500.0,0.00011468,2]
[339731599,1727912740177,-174.7452044,0.00011833,2]
[339731600,1727912740200,-300.0,0.00012287,2]
[339731601,1727912740224,-300.0,0.00012287,2]
[339731602,1727912740248,-24900.0,0.00012288,2]
[339731603,1727912740271,-179.400748,0.00012392,2]
[339731604,1727912740296,-167.734732,0.00012755,2]
[339731605,1727912740321,-167.734732,0.00012921,2]
[339731606,1727912740342,-475.03794741,0.00013042,2]
[339731607,1727912740366,-167.734732,0.00013087,2]
[339731608,1727912740390,-167.734732,0.00013253,2]
[339731609,1727912740414,-167.734732,0.00013419,2]
[339731610,1727912740436,-420.0,0.00013485,2]
[339731611,1727912740459,-297.0,0.00013516,2]
[339731612,1727912740481,-210.94033961,0.00013568,2]
[339731613,1727912740503,-3120.15881681,0.00013568,2]
[339731614,1727912740524,-763.33007988,0.0001359,2]
[339731615,1727912740549,-36911.9322261,0.00013668,2]
[339731616,1727912740572,-1427.40516734,0.00013668,2]
[339731617,1727912740596,-500.0,0.00013673,2]
[339731618,1727912740619,-500.0,0.00013673,2]
[339731619,1727912740643,-500.0,0.00013673,2]
[339731620,1727912740666,-500.0,0.00013673,2]
[339731621,1727912740687,-500.0,0.00013673,2]
[339731622,1727912740708,-500.0,0.00013673,2]
[339731623,1727912740729,-500.0,0.00013673,2]
[339731624,1727912740754,-5087.15966943,0.00013678,2]
[339731625,1727912740776,-3962.78261813,0.00013678,2]
[339731626,1727912740799,-46783.47798889,0.00013678,2]
[339731627,1727912758099,-15749.79812145,0.00013678,2]
[339731628,1727912825153,-500.0,0.00011435,2]
[339731629,1727912825175,-500.0,0.00013673,2]
[339731630,1727912825197,-500.0,0.00013673,2]
[339731631,1727912825221,-500.0,0.00013673,2]
[339731632,1727912825243,-500.0,0.00013673,2]
[339731633,1727912825267,-300.0,0.00013677,2]
[339731634,1727912825291,-15256.139192,0.00013678,2]
[339731635,1727912838095,-500.0,0.00013673,2]
[339731636,1727912838119,-46465.87532599,0.00013678,2]
[339731637,1727912854093,-235.68924281,0.00013673,2]
[339731638,1727912854171,-264.31075719,0.00013673,2]
[339731639,1727912854196,-9393.42463806,0.00013678,2]
[339731641,1727912948145,-241.61,0.00010959,2]
[339731642,1727912952003,259.6502,0.00012295,2]
[339731643,1727912956105,-240.3498,0.00012295,2]
[339731667,1727913031756,-300.0,0.00012677,2]
[339731670,1727913031766,-1600.9847661,0.00012678,2]
[339731758,1727913037902,-1749.97756905,0.00012678,2]
[339731839,1727913039934,-5218.43059178,0.00012678,2]
[339731873,1727913043160,-17.08291904,0.00012678,2]
[339731874,1727913043444,-14461.338274,0.00012678,2]
[339731875,1727913043457,-1852.18588003,0.00012678,2]
[339731876,1727913043466,-2730.1389647,0.00013573,2]
[339731877,1727913043476,-686.99707191,0.00013588,2]
[339731878,1727913043487,-210.94033962,0.00013668,2]
[339731879,1727913043496,-28383.8998515,0.00013668,2]
[339731880,1727913043507,-42358.4493578,0.00013668,2]
[339731881,1727913043517,-502.46159448,0.00013673,2]
[339731882,1727913043527,-2543.57983472,0.00013678,2]
[339731883,1727913043536,-1981.39130906,0.00013678,2]
[339731884,1727913043546,-113535.599406,0.00013678,2]
[339731885,1727913043555,-169433.797431,0.00013678,2]
[339731886,1727913043565,-151.0,0.00013678,2]
[339731887,1727913043575,-151.0,0.00013678,2]
[339731888,1727913043586,-151.0,0.00013678,2]
[339731889,1727913043596,-362.625868,0.00013678,2]
[339731890,1727913043606,-362.625868,0.00013678,2]
[339731891,1727913043616,-276.215488,0.00013678,2]
[339731892,1727913043628,-151.0,0.00013678,2]
[339731893,1727913043641,-151.0,0.00013678,2]
[339731894,1727913043651,-1343.5638,0.00013678,2]
[339731895,1727913043661,-1343.5638,0.00013678,2]
[339731896,1727913043670,-151.0,0.00013678,2]
[339731897,1727913043680,-151.0,0.00013678,2]
[339731898,1727913043690,-798.666044,0.00013678,2]
[339731899,1727913043699,-798.666044,0.00013678,2]
[339731900,1727913043709,-204.217047,0.00013678,2]
[339731901,1727913043720,-204.217047,0.00013678,2]
[339731902,1727913043730,-743.786597,0.00013678,2]
[339731903,1727913043740,-743.786597,0.00013678,2]
[339731904,1727913043751,-151.0,0.00013678,2]
[339731905,1727913043760,-151.0,0.00013678,2]
[339731906,1727913043770,-150.01,0.00013687,2]
[339731907,1727913043780,-1091.45648197,0.00013687,2]
[339731908,1727913043789,-151.0,0.00013687,2]
[339731909,1727913043800,-151.0,0.00013688,2]
[339731910,1727913043809,-151.0,0.00013688,2]
[339731911,1727913043819,-151.0,0.00013688,2]
[339731912,1727913043828,-151.0,0.00013688,2]
[339731913,1727913043837,-151.0,0.00013688,2]
[339731914,1727913043847,-151.0,0.00013688,2]
[339731915,1727913043857,-151.0,0.00013688,2]
[339731916,1727913043866,-151.0,0.00013688,2]
[339731917,1727913043876,-151.0,0.00013688,2]
[339731918,1727913043886,-151.0,0.00013688,2]
[339731919,1727913043897,-151.0,0.00013688,2]
[339731920,1727913043906,-151.0,0.00013688,2]
[339731921,1727913043916,-151.0,0.00013688,2]
[339731922,1727913043926,-151.0,0.00013688,2]
[339731923,1727913043936,-151.0,0.00013688,2]
[339731924,1727913043945,-151.0,0.00013688,2]
[339731925,1727913043955,-151.0,0.00013688,2]
[339731926,1727913043964,-151.0,0.00013688,2]
[339731927,1727913043974,-151.0,0.00013688,2]
[339731928,1727913043984,-151.0,0.00013688,2]
[339731929,1727913043993,-228.968752,0.00013688,2]
[339731930,1727913044003,-362.625868,0.00013688,2]
[339731931,1727913044012,-362.625868,0.00013688,2]
[339731932,1727913044021,-362.625868,0.00013688,2]
[339731933,1727913044031,-362.625868,0.00013688,2]
[339731934,1727913044040,-362.625868,0.00013688,2]
[339731935,1727913044050,-362.625868,0.00013688,2]
[339731936,1727913044059,-362.625868,0.00013688,2]
[339731937,1727913044069,-362.625868,0.00013688,2]
[339731938,1727913044080,-151.0,0.00013688,2]
[339731939,1727913044090,-151.0,0.00013688,2]
[339731940,1727913044100,-151.0,0.00013688,2]
[339731941,1727913044109,-151.0,0.00013688,2]
[339731942,1727913044120,-151.0,0.00013688,2]
[339731943,1727913044129,-151.0,0.00013688,2]
[339731944,1727913044140,-151.0,0.00013688,2]
[339731945,1727913044150,-151.0,0.00013688,2]
[339731946,1727913044159,-450.076511,0.00013688,2]
[339731947,1727913044168,-450.076511,0.00013688,2]
[339731948,1727913044177,-450.076511,0.00013688,2]
[339731949,1727913044188,-450.076511,0.00013688,2]
[339731950,1727913044198,-450.076511,0.00013688,2]
[339731951,1727913044209,-450.076511,0.00013688,2]
[339731952,1727913044220,-450.076511,0.00013688,2]
[339731953,1727913044232,-450.076511,0.00013688,2]
[339731954,1727913044242,-450.076511,0.00013688,2]
[339731955,1727913044253,-450.076511,0.00013688,2]
[339731956,1727913044263,-835.643805,0.00013688,2]
[339731957,1727913044275,-835.643805,0.00013688,2]
[339731958,1727913044286,-835.643805,0.00013688,2]
[339731959,1727913044297,-835.643805,0.00013688,2]
[339731960,1727913044308,-835.643805,0.00013688,2]
[339731961,1727913044318,-835.643805,0.00013688,2]
[339731962,1727913044329,-151.0,0.00013688,2]
[339731963,1727913044341,-835.643805,0.00013688,2]
[339731964,1727913044351,-151.0,0.00013688,2]
[339731965,1727913044361,-835.643805,0.00013688,2]
[339731966,1727913044372,-151.0,0.00013688,2]
[339731967,1727913044381,-835.643805,0.00013688,2]
[339731968,1727913044392,-151.0,0.00013688,2]
[339731969,1727913044402,-835.643805,0.00013688,2]
[339731970,1727913044415,-151.0,0.00013688,2]
[339731971,1727913044424,-151.0,0.00013688,2]
[339731972,1727913044433,-151.0,0.00013688,2]
[339731973,1727913044447,-151.0,0.00013688,2]
[339731974,1727913044457,-151.0,0.00013688,2]
[339731975,1727913044467,-151.0,0.00013688,2]
[339731976,1727913044477,-151.0,0.00013688,2]
[339731977,1727913044486,-151.0,0.00013688,2]
[339731978,1727913044497,-151.0,0.00013688,2]
[339731979,1727913044508,-151.0,0.00013688,2]
[339731980,1727913044518,-151.0,0.00013688,2]
[339731981,1727913044530,-151.0,0.00013688,2]
[339731982,1727913044540,-151.0,0.00013688,2]
[339731983,1727913044550,-151.0,0.00013688,2]
[339731984,1727913044561,-151.0,0.00013688,2]
[339731985,1727913044571,-151.0,0.00013688,2]
[339731986,1727913044580,-151.0,0.00013688,2]
[339731987,1727913044590,-151.0,0.00013688,2]
[339731988,1727913044599,-151.0,0.00013688,2]
[339731989,1727913044608,-151.0,0.00013688,2]
[339731990,1727913044618,-151.0,0.00013688,2]
[339731991,1727913044634,-151.0,0.00013688,2]
[339731992,1727913044646,-154.529809,0.00013688,2]
[339731993,1727913044657,-151.0,0.00013688,2]
[339731994,1727913044839,-400.272435,0.00013688,2]
[339731995,1727913044850,-151.0,0.00013688,2]
[339731996,1727913044859,-400.272435,0.00013688,2]
[339731997,1727913044869,-151.0,0.00013688,2]
[339731998,1727913044879,-400.272435,0.00013688,2]
[339731999,1727913044890,-151.0,0.00013688,2]
[339732000,1727913044899,-151.0,0.00013688,2]
[339732001,1727913044907,-400.272435,0.00013688,2]